[Event "FIDE U16 Olympiad_boards_1-80"]
[Site "Eindhoven, Netherlands"]
[Date "2023.08.14"]
[Round "3.40"]
[White "Kovalskyi, Roman"]
[Black "Omeri, Eklea"]
[Result "1-0"]
[TimeControl "2700+10"]
[WhiteElo "1989"]
[BlackElo "1746"]

1. e4 {[%clk 00:45:19]} c6 {[%clk 00:45:15]} {[%emt 00:00:05]} 2. d4 {[%clk
00:45:28]} d5 {[%clk 00:45:24]} 3. exd5 {[%clk 00:45:38]} {[%emt 00:00:01]}
cxd5 {[%clk 00:45:33]} 4. Bd3 {[%clk 00:45:47]} Nc6 {[%clk 00:45:33]} {[%emt
00:00:10]} 5. c3 {[%clk 00:45:56]} {[%emt 00:00:01]} Nf6 {[%clk 00:45:42]}
{[%emt 00:00:02]} 6. h3 {[%clk 00:46:05]} g6 {[%clk 00:45:47]} {[%emt
00:00:06]} 7. Nf3 {[%clk 00:46:08]} {[%emt 00:00:06]} Bg7 {[%clk 00:45:49]}
{[%emt 00:00:08]} 8. Qc2 {[%clk 00:46:17]} {[%emt 00:00:02]} Qc7 {[%clk
00:45:36]} {[%emt 00:00:22]} 9. O-O {[%clk 00:46:23]} {[%emt 00:00:04]} O-O
{[%clk 00:45:06]} {[%emt 00:00:41]} 10. Re1 {[%clk 00:46:31]} {[%emt 00:00:01]}
b6 {[%clk 00:44:58]} {[%emt 00:00:18]} 11. Be3 {[%clk 00:46:17]} {[%emt
00:00:24]} a5 {[%clk 00:43:20]} {[%emt 00:01:49]} 12. a4 {[%clk 00:44:41]}
{[%emt 00:01:45]} Ba6 {[%clk 00:41:07]} {[%emt 00:02:23]} 13. Na3 {[%clk
00:44:36]} {[%emt 00:00:15]} Bxd3 {[%clk 00:40:49]} {[%emt 00:00:28]} 14. Qxd3
{[%clk 00:44:44]} {[%emt 00:00:02]} e6 {[%clk 00:32:21]} {[%emt 00:08:38]} 15.
Nb5 {[%clk 00:44:35]} {[%emt 00:00:19]} Qb8 {[%clk 00:31:12]} {[%emt 00:01:19]}
16. g3 {[%clk 00:40:06]} {[%emt 00:04:39]} Nh5 {[%clk 00:30:17]} {[%emt
00:01:06]} 17. Kg2 {[%clk 00:40:07]} {[%emt 00:00:08]} Re8 {[%clk 00:27:21]}
{[%emt 00:03:07]} 18. Qd2 {[%clk 00:38:12]} {[%emt 00:02:04]} Na7 {[%clk
00:25:26]} {[%emt 00:02:04]} 19. Ne5 {[%clk 00:23:53]} {[%emt 00:14:30]} Nf6
{[%clk 00:16:07]} {[%emt 00:09:29]} 20. f3 {[%clk 00:21:26]} {[%emt 00:02:37]}
Nxb5 {[%clk 00:15:40]} {[%emt 00:00:36]} 21. axb5 {[%clk 00:20:52]} {[%emt
00:00:45]} Qc8 {[%clk 00:14:10]} {[%emt 00:01:39]} 22. Nc6 {[%clk 00:18:51]}
{[%emt 00:02:12]} Nd7 {[%clk 00:13:14]} {[%emt 00:01:07]} 23. Bf4 {[%clk
00:18:41]} {[%emt 00:00:19]} f6 {[%clk 00:11:26]} {[%emt 00:01:57]} 24. g4
{[%clk 00:17:48]} {[%emt 00:01:04]} Nf8 {[%clk 00:09:38]} {[%emt 00:01:59]} 25.
Bg3 {[%clk 00:14:38]} {[%emt 00:03:20]} Qd7 {[%clk 00:09:28]} {[%emt 00:00:19]}
26. Qf4 {[%clk 00:14:02]} {[%emt 00:00:44]} e5 {[%clk 00:06:14]} {[%emt
00:03:26]} 27. dxe5 {[%clk 00:13:49]} {[%emt 00:00:23]} fxe5 {[%clk 00:06:23]}
{[%emt 00:00:01]} 28. Qg5 {[%clk 00:11:13]} {[%emt 00:02:46]} Ne6 {[%clk
00:04:29]} {[%emt 00:02:04]} 29. Qd2 {[%clk 00:11:08]} {[%emt 00:00:16]} Nc5
{[%clk 00:04:22]} {[%emt 00:00:17]} 30. Rad1 {[%clk 00:10:47]} {[%emt
00:00:30]} d4 {[%clk 00:03:07]} {[%emt 00:01:25]} 31. Bxe5 {[%clk 00:04:33]}
{[%emt 00:06:25]} Bxe5 {[%clk 00:01:01]} {[%emt 00:02:15]} 32. Rxe5 {[%clk
00:04:42]} {[%emt 00:00:02]} Rxe5 {[%clk 00:00:45]} {[%emt 00:00:25]} 33. Nxe5
{[%clk 00:04:51]} {[%emt 00:00:01]} Qxb5 {[%clk 00:00:38]} {[%emt 00:00:17]} 34.
Qxd4 {[%clk 00:04:52]} {[%emt 00:00:09]} Qxb2+ {[%clk 00:00:28]} {[%emt
00:00:21]} 35. Rd2 {[%clk 00:05:01]} {[%emt 00:00:01]} Qb3 {[%clk 00:00:26]}
{[%emt 00:00:12]} 36. c4 {[%clk 00:05:09]} {[%emt 00:00:01]} Re8 {[%clk
00:00:16]} {[%emt 00:00:20]} 37. Rb2 {[%clk 00:03:40]} {[%emt 00:01:38]} Qa4
{[%clk 00:00:21]} {[%emt 00:00:05]} 38. Rxb6 {[%clk 00:03:48]} Qc2+ {[%clk
00:00:22]} {[%emt 00:00:13]} 39. Kg3 {[%clk 00:03:51]} {[%emt 00:00:06]} Ne6
{[%clk 00:00:12]} {[%emt 00:00:20]} 40. Rxe6 {[%clk 00:02:47]} {[%emt
00:01:14]} Rxe6 {[%clk 00:00:21]} 41. Qd8+ {[%clk 00:02:56]} Kg7 {[%clk
00:00:26]} {[%emt 00:00:06]} 42. Qd7+ {[%clk 00:03:05]} {[%emt 00:00:01]} 1-0

[Event "FIDE U16 Olympiad_boards_1-80"]
[Site "Eindhoven, Netherlands"]
[Date "2023.08.14"]
[Round "3.41"]
[White "Lavrencic, Matic"]
[Black "Hagner, Bennet"]
[Result "0-1"]
[TimeControl "2700+10"]
[WhiteElo "2220"]
[BlackElo "2221"]

1. Nf3 {[%clk 00:45:09]} {[%emt 00:00:10]} d5 {[%clk 00:44:43]} {[%emt
00:00:38]} 2. g3 {[%clk 00:44:56]} {[%emt 00:00:23]} g6 {[%clk 00:44:32]}
{[%emt 00:00:21]} 3. Bg2 {[%clk 00:43:50]} {[%emt 00:01:16]} Bg7 {[%clk
00:44:40]} {[%emt 00:00:02]} 4. d4 {[%clk 00:43:54]} {[%emt 00:00:06]} Nf6
{[%clk 00:44:48]} {[%emt 00:00:03]} 5. O-O {[%clk 00:44:01]} {[%emt 00:00:02]}
O-O {[%clk 00:44:55]} {[%emt 00:00:03]} 6. c3 {[%clk 00:40:46]} {[%emt
00:03:25]} a5 {[%clk 00:43:54]} {[%emt 00:01:11]} 7. a4 {[%clk 00:40:05]}
{[%emt 00:00:52]} b6 {[%clk 00:43:14]} {[%emt 00:00:50]} 8. Bf4 {[%clk
00:38:53]} {[%emt 00:01:22]} Bb7 {[%clk 00:43:10]} {[%emt 00:00:13]} 9. Nbd2
{[%clk 00:36:33]} {[%emt 00:02:30]} Nbd7 {[%clk 00:42:50]} {[%emt 00:00:30]} 10.
Ne5 {[%clk 00:36:12]} {[%emt 00:00:32]} Nh5 {[%clk 00:41:48]} {[%emt 00:01:11]}
11. Nxd7 {[%clk 00:36:11]} {[%emt 00:00:12]} Qxd7 {[%clk 00:41:55]} {[%emt
00:00:02]} 12. Be3 {[%clk 00:36:04]} {[%emt 00:00:16]} Rad8 {[%clk 00:37:06]}
{[%emt 00:05:00]} 13. Qb3 {[%clk 00:30:49]} {[%emt 00:05:25]} Nf6 {[%clk
00:34:56]} {[%emt 00:02:20]} 14. h3 {[%clk 00:27:49]} {[%emt 00:03:10]} h5
{[%clk 00:33:44]} {[%emt 00:01:22]} 15. Kh2 {[%clk 00:22:28]} {[%emt 00:05:31]}
Rfe8 {[%clk 00:30:53]} {[%emt 00:03:00]} 16. Bf4 {[%clk 00:21:44]} {[%emt
00:00:55]} Qc8 {[%clk 00:24:31]} {[%emt 00:06:33]} 17. Be5 {[%clk 00:21:04]}
{[%emt 00:00:49]} Nd7 {[%clk 00:20:13]} {[%emt 00:04:28]} 18. Bxg7 {[%clk
00:21:06]} {[%emt 00:00:08]} Kxg7 {[%clk 00:20:21]} {[%emt 00:00:02]} 19. Rad1
{[%clk 00:14:06]} {[%emt 00:07:11]} Nf6 {[%clk 00:17:32]} {[%emt 00:02:59]} 20.
e3 {[%clk 00:13:50]} {[%emt 00:00:25]} Qf5 {[%clk 00:16:49]} {[%emt 00:00:52]}
21. Kg1 {[%clk 00:09:34]} {[%emt 00:04:26]} e5 {[%clk 00:12:34]} {[%emt
00:04:26]} 22. dxe5 {[%clk 00:08:25]} {[%emt 00:01:20]} Qxe5 {[%clk 00:12:42]}
{[%emt 00:00:01]} 23. Nf3 {[%clk 00:08:17]} {[%emt 00:00:18]} Qe7 {[%clk
00:12:51]} {[%emt 00:00:01]} 24. Nd4 {[%clk 00:07:21]} {[%emt 00:01:07]} Ne4
{[%clk 00:12:37]} {[%emt 00:00:23]} 25. Qc2 {[%clk 00:06:54]} {[%emt 00:00:37]}
Rd7 {[%clk 00:10:08]} {[%emt 00:02:40]} 26. Rfe1 {[%clk 00:05:33]} {[%emt
00:01:30]} c5 {[%clk 00:08:42]} {[%emt 00:01:36]} 27. Nb5 {[%clk 00:05:42]}
{[%emt 00:00:02]} h4 {[%clk 00:06:43]} {[%emt 00:02:09]} 28. g4 {[%clk
00:04:53]} {[%emt 00:00:58]} Ng5 {[%clk 00:06:12]} {[%emt 00:00:41]} 29. f4
{[%clk 00:04:27]} {[%emt 00:00:36]} Ne4 {[%clk 00:05:51]} {[%emt 00:00:31]} 30.
Bxe4 {[%clk 00:03:36]} {[%emt 00:01:01]} Qxe4 {[%clk 00:05:34]} {[%emt
00:00:27]} 31. Qxe4 {[%clk 00:03:45]} {[%emt 00:00:02]} Rxe4 {[%clk 00:05:42]}
{[%emt 00:00:01]} 32. b3 {[%clk 00:03:47]} {[%emt 00:00:08]} Bc6 {[%clk
00:04:45]} {[%emt 00:01:07]} 33. Kf2 {[%clk 00:01:50]} {[%emt 00:02:07]} d4
{[%clk 00:02:53]} {[%emt 00:02:02]} 34. cxd4 {[%clk 00:01:54]} {[%emt
00:00:06]} Bxb5 {[%clk 00:03:02]} {[%emt 00:00:02]} 35. axb5 {[%clk 00:02:03]}
{[%emt 00:00:01]} cxd4 {[%clk 00:03:10]} 36. Kf3 {[%clk 00:01:32]} {[%emt
00:00:41]} Rde7 {[%clk 00:02:19]} {[%emt 00:01:01]} 37. Rd3 {[%clk 00:01:34]}
{[%emt 00:00:08]} Re8 {[%clk 00:00:40]} {[%emt 00:01:49]} 38. Re2 {[%clk
00:01:38]} {[%emt 00:00:07]} R8e7 {[%clk 00:00:48]} {[%emt 00:00:01]} 39. Rxd4
{[%clk 00:01:39]} {[%emt 00:00:09]} Rxd4 {[%clk 00:00:27]} {[%emt 00:00:32]} 40.
exd4 {[%clk 00:01:48]} Rc7 {[%clk 00:00:15]} {[%emt 00:00:22]} 41. Re3 {[%clk
00:00:41]} {[%emt 00:01:17]} Rc2 {[%clk 00:00:13]} {[%emt 00:00:11]} 42. Ke4
{[%clk 00:00:32]} {[%emt 00:00:20]} Kf6 {[%clk 00:00:13]} {[%emt 00:00:09]} 43.
Kd5 {[%clk 00:00:32]} {[%emt 00:00:10]} Rc8 {[%clk 00:00:13]} {[%emt 00:00:11]}
44. Ke4 {[%clk 00:00:21]} {[%emt 00:00:21]} Ke6 {[%clk 00:00:14]} {[%emt
00:00:09]} 45. Kd3+ {[%clk 00:00:25]} {[%emt 00:00:04]} Kd6 {[%clk 00:00:24]}
{[%emt 00:00:01]} 46. Re1 {[%clk 00:00:32]} {[%emt 00:00:04]} f6 {[%clk
00:00:18]} {[%emt 00:00:15]} 47. f5 {[%clk 00:00:35]} {[%emt 00:00:07]} gxf5
{[%clk 00:00:20]} {[%emt 00:00:09]} 48. gxf5 {[%clk 00:00:44]} Rg8 {[%clk
00:00:18]} {[%emt 00:00:11]} 49. Re4 {[%clk 00:00:20]} {[%emt 00:00:34]} Rg3+
{[%clk 00:00:24]} {[%emt 00:00:04]} 50. Kc4 {[%clk 00:00:29]} {[%emt 00:00:02]}
Rxh3 {[%clk 00:00:29]} {[%emt 00:00:04]} 51. Re6+ {[%clk 00:00:38]} {[%emt
00:00:01]} Kc7 {[%clk 00:00:30]} {[%emt 00:00:09]} 52. Rxf6 {[%clk 00:00:47]}
{[%emt 00:00:02]} Rf3 {[%clk 00:00:36]} {[%emt 00:00:03]} 53. Kd5 {[%clk
00:00:37]} {[%emt 00:00:20]} h3 {[%clk 00:00:25]} {[%emt 00:00:21]} 54. Rf7+
{[%clk 00:00:46]} Kd8 {[%clk 00:00:33]} {[%emt 00:00:03]} 55. Kc6 {[%clk
00:00:38]} {[%emt 00:00:18]} Rxb3 {[%clk 00:00:17]} {[%emt 00:00:26]} 56. Kxb6
{[%clk 00:00:38]} {[%emt 00:00:10]} a4 {[%clk 00:00:26]} 57. Kc6 {[%clk
00:00:33]} {[%emt 00:00:15]} a3 {[%clk 00:00:35]} 58. Rd7+ {[%clk 00:00:29]}
{[%emt 00:00:14]} Ke8 {[%clk 00:00:43]} {[%emt 00:00:02]} 59. f6 {[%clk
00:00:29]} {[%emt 00:00:10]} a2 {[%clk 00:00:29]} {[%emt 00:00:24]} 60. Re7+
{[%clk 00:00:18]} {[%emt 00:00:22]} Kf8 {[%clk 00:00:36]} {[%emt 00:00:02]} 61.
Ra7 {[%clk 00:00:18]} {[%emt 00:00:10]} h2 {[%clk 00:00:42]} {[%emt 00:00:05]}
0-1

[Event "FIDE U16 Olympiad_boards_1-80"]
[Site "Eindhoven, Netherlands"]
[Date "2023.08.14"]
[Round "3.42"]
[White "Ermitsch, Magnus"]
[Black "Olenik Campa, Rudi"]
[Result "1/2-1/2"]
[TimeControl "2700+10"]
[WhiteElo "2297"]
[BlackElo "2110"]

1. e4 {[%clk 00:45:18]} {[%emt 00:00:02]} e6 {[%clk 00:45:19]} {[%emt
00:00:02]} 2. d4 {[%clk 00:45:22]} {[%emt 00:00:05]} d5 {[%clk 00:45:27]}
{[%emt 00:00:02]} 3. Nc3 {[%clk 00:45:31]} {[%emt 00:00:01]} Nf6 {[%clk
00:45:36]} {[%emt 00:00:02]} 4. e5 {[%clk 00:45:26]} {[%emt 00:00:15]} Nfd7
{[%clk 00:45:45]} 5. Nce2 {[%clk 00:45:31]} {[%emt 00:00:04]} c5 {[%clk
00:45:49]} {[%emt 00:00:06]} 6. c3 {[%clk 00:45:27]} {[%emt 00:00:14]} cxd4
{[%clk 00:45:11]} {[%emt 00:00:48]} 7. cxd4 {[%clk 00:45:35]} {[%emt 00:00:03]}
f6 {[%clk 00:45:19]} {[%emt 00:00:02]} 8. f4 {[%clk 00:45:29]} {[%emt
00:00:16]} fxe5 {[%clk 00:45:27]} {[%emt 00:00:02]} 9. fxe5 {[%clk 00:45:38]}
{[%emt 00:00:01]} Qh4+ {[%clk 00:45:34]} {[%emt 00:00:03]} 10. Ng3 {[%clk
00:45:44]} {[%emt 00:00:03]} Bb4+ {[%clk 00:45:41]} {[%emt 00:00:03]} 11. Kf2
{[%clk 00:45:50]} {[%emt 00:00:05]} O-O+ {[%clk 00:45:46]} {[%emt 00:00:05]} 12.
Nf3 {[%clk 00:45:57]} {[%emt 00:00:02]} Nc6 {[%clk 00:45:54]} {[%emt 00:00:02]}
13. Be3 {[%clk 00:46:03]} {[%emt 00:00:05]} Ba5 {[%clk 00:46:02]} {[%emt
00:00:02]} 14. Kg1 {[%clk 00:43:25]} {[%emt 00:02:47]} Rxf3 {[%clk 00:46:05]}
{[%emt 00:00:07]} 15. gxf3 {[%clk 00:43:02]} {[%emt 00:00:34]} Bb6 {[%clk
00:46:14]} {[%emt 00:00:01]} 16. f4 {[%clk 00:30:39]} {[%emt 00:12:33]} g5
{[%clk 00:46:23]} {[%emt 00:00:01]} 17. Qh5 {[%clk 00:24:44]} {[%emt 00:06:04]}
Qxh5 {[%clk 00:46:15]} {[%emt 00:00:19]} 18. Nxh5 {[%clk 00:24:53]} {[%emt
00:00:02]} gxf4 {[%clk 00:42:51]} {[%emt 00:03:33]} 19. Nxf4 {[%clk 00:23:22]}
{[%emt 00:01:41]} Nxd4 {[%clk 00:40:22]} {[%emt 00:02:37]} 20. Bh3 {[%clk
00:21:21]} {[%emt 00:02:12]} Nxe5 {[%clk 00:39:07]} {[%emt 00:01:25]} 21. Kg2
{[%clk 00:20:06]} {[%emt 00:01:26]} Ne2 {[%clk 00:31:48]} {[%emt 00:07:29]} 22.
Nxe2 {[%clk 00:17:41]} {[%emt 00:02:35]} Bxe3 {[%clk 00:31:56]} {[%emt
00:00:02]} 23. Rhf1 {[%clk 00:15:30]} {[%emt 00:02:21]} Ng6 {[%clk 00:30:34]}
{[%emt 00:01:32]} 24. Rad1 {[%clk 00:14:15]} {[%emt 00:01:25]} Bd7 {[%clk
00:26:45]} {[%emt 00:03:58]} 25. Rd3 {[%clk 00:11:11]} {[%emt 00:03:14]} d4
{[%clk 00:19:07]} {[%emt 00:07:48]} 1/2-1/2

[Event "FIDE U16 Olympiad_boards_1-80"]
[Site "Eindhoven, Netherlands"]
[Date "2023.08.14"]
[Round "3.43"]
[White "Skrbec, Leon"]
[Black "Peglau, Dora"]
[Result "1-0"]
[TimeControl "2700+10"]
[WhiteElo "2079"]
[BlackElo "1861"]

1. d4 {[%clk 00:45:12]} {[%emt 00:00:08]} Nf6 {[%clk 00:45:16]} {[%emt
00:00:05]} 2. c4 {[%clk 00:45:13]} {[%emt 00:00:08]} e6 {[%clk 00:45:23]}
{[%emt 00:00:03]} 3. Nf3 {[%clk 00:45:20]} {[%emt 00:00:04]} d5 {[%clk
00:45:29]} {[%emt 00:00:03]} 4. g3 {[%clk 00:45:20]} {[%emt 00:00:09]} Be7
{[%clk 00:45:12]} {[%emt 00:00:28]} 5. Bg2 {[%clk 00:45:28]} {[%emt 00:00:02]}
c6 {[%clk 00:45:10]} {[%emt 00:00:13]} 6. O-O {[%clk 00:45:32]} {[%emt
00:00:05]} O-O {[%clk 00:45:05]} {[%emt 00:00:15]} 7. Qc2 {[%clk 00:45:39]}
{[%emt 00:00:03]} Nbd7 {[%clk 00:44:55]} {[%emt 00:00:21]} 8. Nbd2 {[%clk
00:45:08]} {[%emt 00:00:40]} b6 {[%clk 00:44:47]} {[%emt 00:00:18]} 9. b3
{[%clk 00:41:40]} {[%emt 00:03:38]} Bb7 {[%clk 00:44:41]} {[%emt 00:00:16]} 10.
Bb2 {[%clk 00:41:41]} {[%emt 00:00:09]} Rc8 {[%clk 00:43:57]} {[%emt 00:00:55]}
11. e4 {[%clk 00:40:54]} {[%emt 00:00:57]} dxe4 {[%clk 00:43:54]} {[%emt
00:00:12]} 12. Nxe4 {[%clk 00:41:02]} {[%emt 00:00:02]} Nxe4 {[%clk 00:42:29]}
{[%emt 00:01:35]} 13. Qxe4 {[%clk 00:41:10]} {[%emt 00:00:02]} Nf6 {[%clk
00:41:11]} {[%emt 00:01:28]} 14. Qc2 {[%clk 00:41:16]} {[%emt 00:00:04]} c5
{[%clk 00:36:59]} {[%emt 00:04:22]} 15. Rad1 {[%clk 00:40:12]} {[%emt
00:01:13]} cxd4 {[%clk 00:32:24]} {[%emt 00:04:46]} 16. Bxd4 {[%clk 00:39:20]}
{[%emt 00:01:01]} Qc7 {[%clk 00:31:56]} {[%emt 00:00:40]} 17. Rfe1 {[%emt
00:04:22]} Rfd8 {[%clk 00:31:07]} 18. Be5 {[%clk 00:28:29]} {[%emt 00:07:47]}
Qc5 {[%clk 00:29:20]} {[%emt 00:01:58]} 19. Rxd8+ {[%clk 00:28:20]} Rxd8 {[%clk
00:29:16]} {[%emt 00:00:33]} 20. Ng5 {[%clk 00:24:02]} {[%emt 00:04:27]} Bxg2
{[%clk 00:13:25]} {[%emt 00:16:02]} 21. Bxf6 {[%clk 00:20:30]} {[%emt
00:03:41]} Bxf6 {[%clk 00:11:41]} {[%emt 00:01:55]} 22. Qxh7+ {[%clk 00:20:37]}
{[%emt 00:00:02]} Kf8 {[%clk 00:11:50]} 23. Rxe6 {[%clk 00:20:42]} {[%emt
00:00:05]} fxe6 {[%clk 00:11:48]} {[%emt 00:00:13]} 24. Nxe6+ {[%clk 00:20:51]}
{[%emt 00:00:01]} Ke7 {[%clk 00:11:22]} {[%emt 00:00:36]} 25. Nxc5 {[%clk
00:20:59]} {[%emt 00:00:01]} Bf3 {[%clk 00:10:57]} {[%emt 00:00:35]} 26. Nd3
{[%clk 00:21:08]} {[%emt 00:00:01]} Rd4 {[%clk 00:08:47]} {[%emt 00:02:21]} 27.
Nb2 {[%clk 00:14:00]} {[%emt 00:07:17]} Re4 {[%clk 00:06:37]} {[%emt 00:02:21]}
28. Nd3 {[%clk 00:13:25]} {[%emt 00:00:44]} Rd4 {[%clk 00:06:46]} {[%emt
00:00:02]} 29. Qf5 {[%clk 00:09:52]} {[%emt 00:03:42]} Be4 {[%clk 00:06:28]}
{[%emt 00:00:28]} 30. Qf4 {[%clk 00:10:00]} {[%emt 00:00:02]} Bxd3 {[%clk
00:06:20]} {[%emt 00:00:18]} 31. Qe3+ {[%clk 00:10:07]} {[%emt 00:00:02]} Kf7
{[%clk 00:05:48]} {[%emt 00:00:43]} 32. Kg2 {[%clk 00:10:13]} {[%emt 00:00:04]}
Be4+ {[%clk 00:04:58]} {[%emt 00:01:00]} 33. f3 {[%clk 00:10:21]} {[%emt
00:00:02]} Bg6 {[%clk 00:04:28]} {[%emt 00:00:41]} 34. h4 {[%clk 00:10:17]}
{[%emt 00:00:14]} Rd7 {[%clk 00:03:30]} {[%emt 00:01:08]} 35. Qf4 {[%clk
00:10:01]} {[%emt 00:00:25]} Kg8 {[%clk 00:03:04]} {[%emt 00:00:36]} 36. b4
{[%clk 00:09:16]} {[%emt 00:00:56]} Kh7 {[%clk 00:02:11]} {[%emt 00:01:02]} 37.
h5 {[%clk 00:09:14]} {[%emt 00:00:12]} Bd3 {[%clk 00:02:02]} {[%emt 00:00:20]}
38. c5 {[%clk 00:09:01]} {[%emt 00:00:23]} Rd4 {[%clk 00:01:50]} {[%emt
00:00:22]} 39. Qe3 {[%clk 00:09:06]} {[%emt 00:00:05]} bxc5 {[%clk 00:01:23]}
{[%emt 00:00:37]} 40. bxc5 {[%clk 00:09:14]} {[%emt 00:00:01]} Bb5 {[%clk
00:01:16]} {[%emt 00:00:17]} 41. g4 {[%clk 00:09:03]} {[%emt 00:00:21]} Rd3
{[%clk 00:00:46]} {[%emt 00:00:41]} 42. Qe4+ {[%clk 00:09:10]} {[%emt
00:00:02]} Kg8 {[%clk 00:00:26]} {[%emt 00:00:30]} 43. a4 {[%clk 00:08:03]}
{[%emt 00:01:18]} Bd7 {[%clk 00:00:14]} {[%emt 00:00:22]} 44. Qxd3 {[%clk
00:08:08]} {[%emt 00:00:05]} Bxa4 {[%clk 00:00:19]} {[%emt 00:00:04]} 45. Qc4+
{[%clk 00:08:15]} {[%emt 00:00:03]} 1-0